bitfinex/quotes_ETHUSD_20240618
["timestamp","ask_amount","ask_price","bid_price","bid_amount"]
[1718705017690,0.90479891,3437.4,3436.7,0.05818756]
[1718705018097,0.90479891,3437.5,3436.6,2.373]
[1718705018933,0.90479891,3437.4,3436.6,2.373]
[1718705019589,0.90479891,3437.4,3436.7,0.05818755]
[1718705020022,0.90479891,3437.5,3436.7,0.05818755]
[1718705021110,0.90479891,3437.4,3436.7,0.05818755]
[1718705021927,0.90479891,3437.5,3436.8,0.05818756]
[1718705022120,0.90479891,3437.6,3436.8,0.05818756]
[1718705022319,1.20639855,3437.7,3436.8,2.96785756]
[1718705022320,0.90479891,3437.7,3436.8,2.96785756]
[1718705023028,0.90479891,3437.7,3436.9,2.90951]
[1718705023233,0.90479891,3437.7,3437.0,0.05818235]
[1718705023435,0.90479891,3437.7,3437.2,2.44]
[1718705023734,0.90479891,3437.8,3437.2,2.44]
[1718705025006,8.30479891,3437.9,3437.2,2.44]
[1718705025204,0.90479891,3437.8,3437.2,2.44]
[1718705026117,0.90479891,3437.7,3437.2,2.44]
[1718705026429,0.90479891,3437.8,3437.2,2.44]
[1718705026840,0.90479891,3437.8,3437.3,0.05817779]
[1718705027035,8.30479891,3437.9,3437.2,2.44]
[1718705027204,0.90479891,3437.8,3437.2,2.44]
[1718705028010,8.30479891,3437.9,3437.2,2.44]
[1718705028223,0.90479891,3437.8,3437.2,2.44]
[1718705028536,0.90479891,3437.8,3437.3,0.05817781]
[1718705029624,0.90479891,3437.7,3437.3,0.05817781]
[1718705030317,0.50479891,3437.7,3437.2,2.44]
[1718705031038,1.20639855,3437.8,3437.2,2.44]
[1718705032327,8.60639855,3437.9,3437.2,2.44]
[1718705032510,9.10978746,3437.9,3437.2,2.44]
[1718705032819,1.20639855,3437.8,3437.2,2.44]
[1718705033222,9.10978746,3437.9,3437.2,2.44]
[1718705033422,9.10978746,3437.9,3436.8,2.2867]
[1718705033627,1.20639855,3437.7,3436.8,3.1507]
[1718705035315,1.20639855,3437.7,3437.0,0.864]
[1718705036236,1.70978746,3437.8,3437.0,0.864]
[1718705038016,1.70978746,3437.8,3437.2,0.864]
[1718705038228,1.70978746,3437.8,3437.3,0.05817918]
[1718705038625,1.20639855,3437.8,3437.3,0.05817918]
[1718705039148,1.20639855,3437.7,3437.3,0.05817918]
[1718705039348,1.70979543,3437.8,3437.3,0.05817918]
[1718705039655,0.9098185,3437.6,3437.3,0.05817918]
[1718705039868,0.9098185,3437.6,3437.2,0.864]
[1718705040422,1.41319464,3437.8,3437.4,0.864]
[1718705040721,0.9098185,3437.8,3437.4,0.864]
[1718705041922,0.9098185,3437.7,3437.4,0.864]
[1718705043952,0.9098185,3437.6,3437.4,0.864]
[1718705044645,1.20639855,3437.6,3437.4,0.864]
[1718705044950,0.91279333,3437.5,3437.4,0.864]
[1718705045167,1.20639855,3437.6,3437.4,0.864]
[1718705045373,0.9130702,3437.5,3437.4,0.864]
[1718705045651,1.20639855,3437.6,3437.2,0.864]
[1718705045865,0.91308827,3437.4,3437.2,0.864]
[1718705046437,1.20639855,3437.5,3437.2,0.864]
[1718705046438,0.91308827,3437.3,3437.2,0.864]
[1718705046631,0.91308827,3437.4,3437.2,0.864]
[1718705046859,1.20639855,3437.4,3437.2,0.864]
[1718705047058,1.52136837,3437.5,3436.8,2.2867]
[1718705047059,1.20639855,3437.3,3436.8,2.2867]
[1718705047261,0.91348688,3436.9,3436.6,0.05018949]
[1718705047424,0.91338101,3436.8,3436.5,2.4413]
[1718705047624,0.91338101,3436.7,3436.5,2.4413]
[1718705048048,0.91338101,3436.7,3436.1,2.4471]
[1718705048256,0.91338101,3436.6,3436.5,0.864]
[1718705049256,1.21798251,3436.7,3436.5,0.864]
[1718705050250,0.50337614,3437.4,3435.5,2.4577]
[1718705050251,3.63604722,3436.6,3435.5,2.4577]
[1718705050450,0.91404691,3436.3,3436.1,0.864]
[1718705050655,1.21872922,3436.4,3436.1,0.864]
[1718705050656,0.91404691,3436.2,3436.1,0.864]
[1718705051336,0.91404691,3436.2,3435.7,0.05020328]
[1718705051554,0.91404691,3436.2,3436.1,0.864]
[1718705054133,0.91404691,3436.2,3436.1,0.814]
[1718705054361,0.91404691,3436.2,3436.1,0.864]
[1718705054865,0.91404691,3436.2,3435.9,2.4955]
[1718705055043,0.91404691,3436.2,3436.1,0.864]
[1718705056533,0.91404691,3436.3,3436.2,2.91019]
[1718705056840,0.91404691,3436.3,3436.2,3.77419]
[1718705057050,0.91404691,3436.4,3436.2,3.77419]
[1718705057242,0.91404691,3436.4,3436.3,0.864]
[1718705057669,0.91404691,3436.4,3436.3,3.7741]
[1718705057833,0.91404691,3436.5,3436.3,6.0974]
[1718705058030,0.91404691,3436.5,3436.4,0.92219323]
[1718705058854,0.91404691,3436.5,3436.4,0.05819323]
[1718705059027,0.91404691,3436.5,3436.4,0.92219323]
[1718705059232,0.91404691,3436.5,3436.4,0.864]
[1718705062076,0.91404691,3436.5,3436.4,0.92219378]
[1718705062582,0.91404691,3436.5,3436.4,0.864]
[1718705062750,0.91404691,3436.5,3436.4,0.92219374]
[1718705063455,1.21872922,3436.6,3436.4,0.92219374]
[1718705063636,0.9134701,3436.5,3436.4,0.05819374]
[1718705063836,0.9134701,3436.5,3436.4,0.92219374]
[1718705065066,0.9134701,3436.5,3436.3,2.3233]
[1718705065271,0.91445059,3436.4,3436.3,3.1873]
[1718705066962,0.91445059,3436.4,3436.3,0.864]
[1718705067169,1.21872922,3436.6,3435.7,0.05020328]
[1718705067170,1.21872922,3436.5,3435.7,0.05020328]
[1718705067351,2.2582,3437.0,3435.7,0.05020328]
[1718705067352,0.91420977,3436.1,3435.7,0.05020328]
[1718705067548,0.91420977,3436.1,3435.8,0.864]
[1718705067738,0.91420977,3436.0,3435.8,0.864]
[1718705068341,0.91420977,3436.1,3435.8,0.864]
[1718705071391,0.91420977,3436.1,3436.0,0.864]
[1718705072992,1.21872922,3436.1,3436.0,0.864]
[1718705073990,1.21872922,3436.2,3436.0,0.864]
[1718705076274,1.21872922,3436.1,3436.0,0.864]
[1718705076597,0.91303268,3436.1,3436.0,0.864]
[1718705076900,0.91303268,3436.4,3436.1,2.91027]
[1718705077063,0.91303268,3436.5,3436.2,0.92219609]
[1718705077257,0.91303268,3436.5,3436.4,0.864]
[1718705077463,0.91303268,3436.6,3436.4,0.864]
[1718705077795,0.91303268,3436.7,3436.5,0.864]
[1718705078174,1.21872922,3436.8,3436.5,0.864]
[1718705078175,0.91303268,3436.6,3436.5,0.864]
[1718705078903,1.21872922,3436.7,3436.5,0.864]
[1718705079802,0.9135166,3436.6,3436.5,0.864]
[1718705081107,1.21872922,3436.7,3436.5,0.864]
[1718705082191,1.21872922,3436.6,3436.5,0.864]
[1718705083797,1.52251274,3436.8,3436.5,0.864]
[1718705084010,3.6372423,3436.7,3436.5,0.864]
[1718705084171,1.52251274,3436.7,3436.5,0.864]
[1718705084775,2.11474964,3436.6,3436.5,0.864]
[1718705085670,1.52379385,3436.7,3436.5,0.864]
[1718705086571,2.11471425,3436.6,3436.5,0.864]
[1718705086966,3.63872863,3436.6,3436.5,0.864]
[1718705088117,3.63908213,3436.6,3436.5,0.864]
[1718705089305,2.11471425,3436.6,3436.5,0.864]
[1718705089506,3.63949703,3436.6,3436.5,0.864]
[1718705089874,2.11471425,3436.6,3436.5,0.864]
[1718705090300,2.11471425,3436.7,3436.5,0.864]
[1718705092110,2.11471425,3436.6,3436.5,0.864]
[1718705092406,3.9439557,3436.7,3436.5,0.864]
[1718705092608,2.11471425,3436.6,3436.5,0.864]
[1718705093325,3.9439557,3436.7,3436.5,0.864]
[1718705093479,2.11471425,3436.6,3436.5,0.864]
[1718705094792,4.22955286,3438.9,3436.5,0.864]
[1718705094793,1.83227471,3436.7,3436.5,0.864]
[1718705095009,2.11471425,3436.6,3436.4,0.864]
[1718705095194,2.11471425,3436.5,3435.7,0.05019964]
[1718705095398,1.2214702,3435.9,3435.7,0.91419964]
[1718705095600,1.2214702,3435.9,3435.5,2.3269]
[1718705095601,3.336586,3435.8,3435.5,2.3269]
[1718705095919,3.64161503,3435.7,3435.5,2.3269]
[1718705096212,1.2211839,3435.6,3435.5,2.3269]
[1718705096383,1.2211839,3435.7,3435.5,3.1909]
[1718705096580,1.2211839,3435.7,3435.6,0.864]
[1718705096783,2.11514814,3435.7,3435.6,0.864]
[1718705097089,1.22100258,3435.7,3435.6,0.864]
[1718705097591,3.33573104,3435.7,3435.6,0.864]
[1718705097995,1.22060685,3435.7,3435.6,0.864]
[1718705098299,1.52649923,3435.9,3435.6,0.864]
[1718705098300,1.22060685,3435.8,3435.6,0.864]
[1718705098502,1.22060685,3435.7,3435.5,2.3269]
[1718705098699,0.91529369,3435.6,3435.5,2.3269]
[1718705098915,0.91529369,3435.6,3435.5,3.1909]
[1718705099293,0.51529369,3435.6,3435.5,3.1909]
[1718705101446,1.22060685,3435.6,3435.5,0.864]
[1718705102223,1.22060685,3435.6,3435.3,0.05020667]
[1718705102423,1.22060685,3435.6,3435.1,2.2796]
[1718705102424,1.22060685,3435.6,3435.2,0.864]
[1718705102636,1.22060685,3435.4,3435.1,0.864]
[1718705103145,1.22060685,3435.4,3434.7,2.4023]
[1718705103443,1.22060685,3435.3,3434.9,0.864]
[1718705103648,1.22060685,3435.0,3434.9,0.864]
[1718705103995,3.33625574,3435.0,3434.9,0.864]
[1718705104199,1.22060685,3435.1,3434.3,2.91179]
[1718705104442,1.22060685,3435.0,3434.9,0.864]
[1718705105242,1.22060685,3435.0,3433.9,5.38265]
[1718705105243,2.11570168,3435.0,3433.9,5.38265]
[1718705105411,1.217946,3434.5,3434.3,0.864]
[1718705105733,1.217946,3434.6,3434.4,0.05823339]
[1718705105893,1.82965373,3435.1,3433.9,2.4706]
[1718705105894,1.217946,3434.8,3434.6,0.864]
[1718705106541,1.217946,3434.9,3434.6,0.864]
[1718705107203,1.217946,3435.0,3434.6,0.864]
[1718705107447,1.217946,3434.9,3434.6,0.864]
[1718705108237,1.217946,3434.9,3433.3,0.05022939]
[1718705108238,0.864,3434.7,3433.3,0.05022939]
[1718705108399,2.4413,3434.2,3433.3,0.05022939]
[1718705108600,0.91230293,3433.6,3433.3,0.05022939]
[1718705108846,0.91230293,3433.8,3433.4,0.864]
[1718705109156,0.91230293,3434.0,3433.7,0.864]
[1718705109443,0.91230293,3434.1,3433.7,0.864]
[1718705109632,11.617946,3434.2,3433.7,0.864]
[1718705109633,0.91230293,3434.0,3433.7,0.864]
[1718705110229,0.91230293,3434.1,3433.7,0.864]
[1718705110428,0.91230293,3434.1,3433.5,0.864]
[1718705110758,0.91230293,3434.0,3433.3,0.05022939]
[1718705110959,3.28220293,3433.8,3433.2,0.864]
[1718705111170,0.91230293,3433.8,3433.7,0.864]
[1718705111340,3.91230293,3434.1,3433.7,0.864]
[1718705111541,3.0,3434.0,3433.1,2.12969835]
[1718705111946,3.91230293,3434.1,3433.1,2.12969835]
[1718705112245,3.0,3434.1,3433.1,2.12969835]
[1718705112764,3.91230293,3434.1,3433.1,2.12969835]
[1718705113137,7.4,3434.2,3433.2,0.05824491]
[1718705113339,7.4,3434.2,3433.1,2.12969835]
[1718705113340,7.4,3434.2,3433.4,2.3136]
[1718705113538,7.4,3434.2,3433.5,0.05823945]
[1718705115739,3.0,3434.5,3433.5,0.05823945]
[1718705115968,3.0,3434.6,3433.5,0.05823945]
[1718705118877,9.8721,3435.1,3434.0,2.3522]
[1718705119045,3.0,3435.0,3434.1,2.97017813]
[1718705119250,7.4,3435.1,3434.0,2.3522]
[1718705120249,7.4,3435.1,3433.6,2.4353]
[1718705120554,3.0,3435.0,3433.6,2.4353]
[1718705121379,3.0,3435.0,3434.0,2.91204]
[1718705121681,10.4,3435.5,3434.3,2.91179]
[1718705121985,2.3123,3435.7,3434.4,0.05822366]
[1718705122345,2.3123,3435.7,3434.4,2.96992366]
[1718705122849,2.3123,3435.7,3434.4,0.05822366]
[1718705123743,2.3123,3435.7,3434.5,2.4178]
[1718705123945,1.41604818,3435.9,3434.5,2.4178]
[1718705123946,0.50374525,3435.9,3434.7,2.079]
[1718705124145,7.4,3436.0,3434.8,0.05821758]
[1718705124363,7.90371435,3436.0,3434.7,2.079]
[1718705124873,7.90371435,3436.0,3434.5,5.32942]
[1718705125083,7.90371435,3436.0,3431.6,7.35952209]
[1718705125084,5.4514,3433.3,3431.6,1.166721]
[1718705125253,5.4514,3433.3,3431.0,0.29065175]
[1718705125254,2.079,3432.3,3431.0,0.29065175]
[1718705125462,3.97502999,3433.0,3430.7,2.91484]
[1718705125666,2.079,3432.5,3431.5,0.30459849]
[1718705125867,9.35842999,3432.8,3431.5,0.30459849]
[1718705126172,9.35842999,3432.8,3430.7,2.91484]
[1718705126173,3.0,3432.7,3430.7,2.91484]
[1718705126372,3.50371435,3432.7,3430.7,2.91484]
[1718705126890,6.6755818,3432.7,3430.7,2.91484]
[1718705127389,1.09286745,3432.6,3430.5,2.91496]
[1718705127556,1.09286745,3432.6,3430.6,2.91491]
[1718705127966,3.0,3431.8,3430.3,2.91517]
[1718705128574,5.58332913,3432.3,3430.4,2.97337966]
[1718705128575,6.50432913,3432.3,3430.4,2.97337966]
[1718705128898,5.99915483,3432.3,3430.4,2.86509]
[1718705129184,5.99915483,3432.3,3430.5,0.05828777]
[1718705129514,5.99915483,3432.3,3430.4,2.86509]
[1718705129717,8.07815483,3432.3,3430.3,2.91517]
[1718705130389,5.99915483,3432.3,3430.4,2.9151]
[1718705130751,5.99915483,3432.3,3430.9,2.91464]
[1718705132078,5.99915483,3432.3,3431.1,2.91445]
[1718705133868,5.99915483,3432.3,3431.2,2.91442]
[1718705139192,5.99915483,3432.3,3431.0,2.91455]
[1718705139366,5.99915483,3432.3,3431.1,2.91451]
[1718705140592,2.99915483,3432.3,3431.1,2.91451]
[1718705140793,3.0,3432.7,3431.1,2.91451]
[1718705141511,3.0,3432.7,3431.2,2.91441]
[1718705141997,3.0,3432.7,3431.1,2.91451]
[1718705142178,3.0,3432.7,3431.0,2.91459]
[1718705143388,3.0,3432.7,3431.1,2.91451]
[1718705143695,3.0,3432.7,3431.2,2.91439]
[1718705143894,3.0,3432.7,3431.1,2.91449]
[1718705147608,3.0,3432.7,3431.1,5.82892]
[1718705147819,3.0,3432.7,3431.2,2.91441]
[1718705147979,3.0,3432.7,3430.8,2.91475]
[1718705147980,3.0,3432.4,3430.8,2.91475]
[1718705148181,3.0,3432.3,3430.9,0.05828292]
[1718705148685,3.0,3432.3,3431.0,2.91459]
[1718705149708,3.0,3432.3,3430.9,4.99367]
[1718705149876,2.3176,3432.2,3430.7,2.91485]
[1718705150924,3.0,3431.8,3430.5,2.91499]
[1718705151086,3.0,3431.7,3430.5,2.91499]
[1718705151275,0.635787,3431.1,3430.5,2.91499]
[1718705152292,0.635787,3431.1,3430.4,2.9151]
[1718705154804,0.635787,3431.1,3430.5,0.05829001]
[1718705156182,0.635787,3431.1,3430.5,2.13729001]
[1718705156509,0.635787,3431.1,3431.0,2.9146]
[1718705156702,0.635787,3431.1,3430.8,2.91468]
[1718705157015,0.635787,3431.1,3430.9,2.9146]
[1718705159587,0.635787,3431.1,3431.0,2.97288509]
[1718705159786,0.235787,3431.1,3431.0,2.97288509]
[1718705160187,0.235787,3431.1,3431.0,2.9146]
[1718705160382,0.235787,3431.1,3431.0,5.8292]
[1718705160715,0.235787,3431.1,3431.0,6.3792]
[1718705166416,0.235787,3431.1,3431.0,9.2938]
[1718705167625,0.235787,3431.1,3430.9,2.91464]
[1718705167827,0.235787,3431.1,3430.8,2.91475]
[1718705167828,0.235787,3431.1,3431.0,2.9146]
[1718705168053,0.235787,3431.1,3431.0,5.8292]
[1718705168352,0.235787,3431.1,3431.0,6.3792]
[1718705169703,0.091787,3431.1,3431.0,6.3792]
[1718705170214,0.061787,3431.1,3431.0,6.3792]
[1718705174535,0.061787,3431.1,3431.0,3.4646]
[1718705175200,0.061787,3431.1,3430.9,2.91468]
[1718705176200,0.061787,3431.1,3430.9,2.91463]
[1718705177532,0.061787,3431.1,3431.0,2.9146]
[1718705178741,0.061787,3431.1,3431.0,5.8292]
[1718705179638,0.061787,3431.1,3431.0,6.3792]
[1718705180545,0.061787,3431.1,3430.4,2.9151]
[1718705180704,0.90702999,3430.9,3430.6,2.91493]
[1718705181203,0.90702999,3430.8,3430.6,2.91493]
[1718705182840,0.90702999,3430.7,3430.3,2.91518]
[1718705183010,0.90702999,3430.6,3430.3,2.91518]
[1718705183412,0.90702999,3430.5,3430.1,2.91535]
[1718705183712,0.90702999,3430.3,3430.1,2.91535]
[1718705183920,0.90702999,3430.4,3430.1,0.30464558]
[1718705184146,0.90702999,3430.4,3430.2,2.91527]
[1718705184615,1.88585107,3431.1,3430.2,2.91527]
[1718705184616,0.90702999,3430.5,3430.2,2.91527]
[1718705185009,0.90702999,3430.4,3430.2,2.91527]
[1718705185212,2.3393,3430.3,3430.1,0.30464558]
[1718705185426,2.11881675,3430.2,3430.1,0.30464558]
[1718705185626,5.11881675,3430.2,3429.0,0.05831658]
[1718705185851,1.517887,3429.8,3429.0,2.97459658]
[1718705186043,3.33319644,3429.7,3429.2,4.9951]
[1718705186248,0.91078469,3429.8,3429.2,4.99512]
[1718705186448,0.91078469,3429.8,3429.3,2.91604]
[1718705186655,1.21437969,3430.0,3429.3,2.91604]
[1718705186656,0.91078469,3429.9,3429.3,2.91604]
[1718705186854,0.91078469,3429.9,3429.2,2.079]
[1718705187043,0.91078469,3429.8,3429.2,2.079]
[1718705187359,1.21437969,3429.8,3429.2,2.079]
[1718705187544,0.90973127,3429.7,3429.2,2.079]
[1718705187747,0.90973127,3429.7,3428.9,2.91637]
[1718705187949,0.90973127,3429.7,3429.0,2.13731721]
[1718705188929,0.90973127,3429.8,3429.0,2.13731721]
[1718705189152,0.90973127,3429.9,3429.3,2.91604]
[1718705189357,0.90973127,3430.0,3429.4,0.05831289]
[1718705190047,0.90973127,3429.9,3429.4,0.05831289]
[1718705190227,0.90973127,3430.0,3429.4,0.05831289]
[1718705190423,0.90973127,3430.2,3429.3,2.91604]
[1718705190756,0.90973127,3430.2,3430.1,2.91536]
[1718705191064,7.4,3431.2,3430.2,2.91523]
[1718705191065,0.90973127,3430.9,3430.2,2.91523]
[1718705191356,0.90973127,3430.9,3429.8,2.9156]
[1718705191357,0.061787,3431.1,3430.8,2.91474]
[1718705192434,0.061787,3431.1,3430.8,2.079]
[1718705192629,0.061787,3431.1,3431.0,2.9146]
[1718705192858,0.061787,3431.1,3430.9,2.91467]
[1718705193057,0.061787,3431.1,3430.8,2.079]
[1718705195477,0.061787,3431.1,3430.9,0.05828414]
[1718705196359,0.061787,3431.1,3430.8,2.079]
[1718705197163,2.560887,3431.1,3430.1,2.91536]
[1718705197371,0.90973127,3430.9,3430.0,2.079]
[1718705197669,3.3329121,3430.8,3430.6,2.079]
[1718705197856,1.21437969,3430.8,3430.6,2.079]
[1718705198047,0.90882769,3430.7,3430.6,2.079]
[1718705198841,0.90882769,3430.7,3429.6,0.0898877]
[1718705198842,1.21437969,3430.7,3429.6,0.0898877]
[1718705199170,3.33291245,3430.7,3429.8,2.079]
[1718705199372,0.90872537,3430.3,3429.8,2.079]
[1718705200358,0.90872537,3430.4,3429.8,2.079]
[1718705200562,0.90872537,3430.4,3429.6,0.0898877]
[1718705200563,5.4519785,3430.3,3429.6,0.0898877]
[1718705200883,5.4519785,3430.3,3428.4,15.03672]
[1718705200884,2.4243,3429.6,3428.4,1.48596034]
[1718705201188,0.90809784,3429.1,3429.0,2.079]
[1718705201344,0.90809784,3429.2,3429.0,2.079]
[1718705201543,0.90809784,3429.3,3429.0,2.079]
[1718705201781,0.90809784,3429.4,3429.0,2.079]
[1718705201980,0.90809784,3429.6,3429.1,0.05832032]
[1718705202151,0.90809784,3429.6,3429.4,2.079]
[1718705202743,5.4243,3430.7,3429.4,2.079]
[1718705202744,0.8350977,3430.4,3429.4,2.079]
[1718705202980,2.72343661,3430.5,3429.5,2.079]
[1718705203283,3.32980242,3430.4,3429.5,2.079]
[1718705203469,1.21079712,3430.4,3429.5,2.079]
[1718705207886,1.51427787,3430.5,3429.5,2.079]
[1718705208177,3.30348075,3430.5,3429.5,2.079]
[1718705208352,1.51427787,3430.5,3429.5,2.079]
[1718705208559,4.51427787,3430.5,3429.5,2.079]
[1718705208747,1.51427787,3430.5,3429.5,2.079]
[1718705208943,1.21079712,3430.4,3429.5,2.079]
[1718705209143,1.51427787,3430.5,3429.5,2.079]
[1718705209451,4.21079712,3430.6,3429.9,2.079]
[1718705209653,3.0,3430.6,3429.9,2.079]
[1718705210179,4.51263949,3430.8,3430.0,0.05830642]
[1718705210180,1.21079712,3430.8,3430.0,0.05830642]
[1718705210357,1.21079712,3431.0,3430.3,2.079]
[1718705210563,2.371387,3431.1,3430.3,2.079]
[1718705210761,3.58218412,3431.1,3430.3,2.079]
[1718705211250,1.27258412,3431.1,3430.3,2.079]
[1718705211651,0.061787,3431.1,3430.3,2.079]
[1718705211856,0.96911155,3431.1,3430.3,2.079]
[1718705212275,0.90732455,3431.0,3430.3,2.079]
[1718705212483,0.061787,3431.1,3430.3,2.079]
[1718705212685,0.061787,3431.1,3430.4,0.05829504]
[1718705212885,0.061787,3431.1,3430.5,0.05829488]
[1718705213175,0.061787,3431.1,3430.7,2.079]
[1718705219298,0.061787,3431.1,3430.8,0.05828582]
[1718705219460,0.061787,3431.1,3430.7,2.079]
[1718705221175,0.061787,3431.1,3430.8,0.05828556]
[1718705222273,0.061787,3431.1,3430.7,2.079]
[1718705222785,0.061787,3431.1,3430.8,0.05828565]
[1718705223202,0.061787,3431.1,3430.9,0.55]
[1718705223380,0.061787,3431.1,3430.8,0.55]
[1718705223571,0.061787,3431.1,3430.9,2.3429]
[1718705223773,0.061787,3431.1,3431.0,0.55]
[1718705227805,0.0601347,3431.1,3431.0,0.55]
[1718705229105,0.0601347,3431.1,3430.7,2.079]
[1718705229299,0.0601347,3431.1,3430.4,2.2543]
[1718705229499,0.0601347,3431.1,3431.0,2.079]
[1718705229913,0.62191925,3431.8,3431.0,2.079]
[1718705230210,1.21079712,3431.6,3431.0,2.079]
[1718705230632,1.21079712,3431.7,3431.0,2.079]
[1718705231813,1.21079712,3431.8,3431.0,2.079]
[1718705232213,1.21079712,3431.9,3431.0,2.079]
[1718705232514,1.21079712,3431.9,3431.4,2.079]
[1718705233234,3.32889617,3431.8,3431.4,2.079]
[1718705233414,1.21079712,3431.8,3431.4,2.079]
[1718705233620,1.21079712,3431.9,3431.4,2.079]
[1718705234512,1.21079712,3431.8,3431.4,2.079]
[1718705235322,1.21079712,3431.8,3430.4,2.2543]
[1718705235631,1.21079712,3431.8,3429.9,5.9155]
[1718705235632,1.21079712,3431.4,3430.6,2.079]
[1718705236240,1.21079712,3431.3,3430.6,2.079]
[1718705236440,1.21079712,3431.2,3430.6,2.079]
[1718705236736,1.21079712,3431.1,3430.6,2.079]
[1718705237539,1.21079712,3431.1,3430.3,2.079]
[1718705237739,1.21079712,3430.9,3430.3,2.079]
[1718705238906,0.91070988,3430.8,3430.3,2.079]
[1718705241010,0.91070988,3430.7,3430.3,2.079]
[1718705241331,0.91070988,3430.7,3429.9,2.079]
[1718705241332,0.91070988,3430.4,3429.9,2.079]
[1718705241640,0.91066286,3430.3,3429.9,2.079]
[1718705242380,0.91066286,3430.2,3429.0,2.3069]
[1718705242602,0.91066286,3430.1,3429.6,2.37640107]
[1718705242734,0.91066286,3430.1,3429.6,2.079]
[1718705244850,0.91066286,3429.9,3429.0,0.29302924]
[1718705245060,0.91066286,3429.7,3429.0,0.29302924]
[1718705245269,2.12145998,3429.6,3429.0,2.37202924]
[1718705245481,0.91066286,3429.8,3429.1,0.05831894]
[1718705245654,0.91066286,3430.0,3429.0,0.29302924]
[1718705245851,0.91066286,3429.8,3429.0,2.37202924]
[1718705246088,0.91066286,3429.6,3429.0,2.37202924]
[1718705246255,1.51808106,3430.0,3429.0,2.37202924]
[1718705246256,0.91066286,3429.9,3429.4,2.079]
[1718705246445,0.91066286,3430.3,3429.0,0.29302924]
[1718705246744,0.91066286,3430.1,3429.7,2.079]
[1718705246971,0.91066286,3430.0,3429.0,0.29302924]
[1718705247279,1.21079712,3430.1,3429.0,0.29302924]
[1718705247280,0.91066286,3429.9,3429.0,0.29302924]
[1718705247576,1.21079712,3430.1,3429.0,0.29302924]
[1718705247577,0.91066286,3429.8,3429.2,2.079]
[1718705247881,1.51808106,3430.1,3429.6,2.079]
[1718705247882,0.91066286,3430.1,3429.6,2.079]
[1718705248763,0.91066286,3430.0,3429.6,2.079]
[1718705248965,0.91066286,3430.1,3429.6,2.079]
[1718705249559,0.91066286,3430.0,3429.1,0.55]
[1718705249756,0.91066286,3430.0,3429.4,2.079]
[1718705249978,0.91066286,3429.9,3429.4,2.079]
[1718705250550,1.51808106,3430.2,3429.1,0.55]
[1718705250551,0.91066286,3430.1,3429.8,2.079]
[1718705250778,0.91066286,3430.6,3429.9,0.55]
[1718705251683,0.91066286,3430.5,3429.9,0.55]
[1718705251892,0.91066286,3430.1,3429.3,2.3545]
[1718705252054,0.91066286,3430.1,3429.4,0.55]
[1718705252258,1.51808106,3430.4,3429.4,0.55]
[1718705252259,0.91066286,3430.0,3429.4,0.55]
[1718705252500,0.91066286,3430.1,3429.4,0.55]
[1718705253087,0.91066286,3430.2,3429.4,0.55]
[1718705253287,0.91066286,3430.2,3429.7,2.079]
[1718705253609,0.91066286,3430.5,3429.8,0.60831114]
[1718705253888,10.4,3431.0,3430.1,2.079]
[1718705253889,0.91066286,3430.7,3430.1,2.079]
[1718705255090,10.4,3431.0,3429.8,0.55]
[1718705255091,0.91066286,3430.6,3429.8,0.55]
[1718705255294,0.91066286,3430.4,3429.8,0.55]
[1718705255473,0.91066286,3430.5,3429.7,0.55]
[1718705255790,0.91066286,3430.4,3429.7,0.55]
[1718705256090,1.21079712,3430.6,3429.7,0.55]
[1718705256091,0.91066286,3430.6,3429.7,0.55]
[1718705256294,0.91066286,3430.5,3429.7,0.55]
[1718705257261,0.91066286,3430.6,3429.8,0.05830861]
[1718705257565,0.91066286,3430.7,3430.0,2.079]
[1718705257897,0.91066286,3430.7,3430.1,0.55]
[1718705258069,0.91066286,3430.6,3430.1,0.55]
[1718705259180,0.83331829,3430.6,3430.1,0.55]
[1718705259982,0.83331829,3430.6,3430.0,2.079]
[1718705260181,1.21079712,3430.7,3429.6,2.079]
[1718705260390,3.32972497,3430.6,3429.7,0.55]
[1718705260705,1.21079712,3430.6,3429.7,2.629]
[1718705264597,3.0,3430.5,3429.7,2.629]
[1718705264901,3.0,3430.5,3429.7,0.55]
[1718705265081,4.21079712,3430.5,3429.5,2.079]
[1718705265282,4.21079712,3430.5,3429.6,0.55]
[1718705266894,4.21079712,3430.5,3429.6,0.60831006]
[1718705267291,4.21079712,3430.5,3429.6,0.60830994]
[1718705267473,4.21079712,3430.5,3429.6,0.55]
[1718705267666,4.21079712,3430.5,3429.6,0.60830976]
[1718705268093,0.91092362,3430.3,3429.6,0.60830976]
[1718705268282,0.91092362,3430.4,3429.6,0.60830976]
[1718705268678,0.91092362,3430.4,3429.9,2.079]
[1718705268879,1.21079712,3430.6,3430.0,0.55]
[1718705268880,0.91092362,3430.5,3430.0,0.55]
[1718705270317,0.91092362,3430.5,3430.0,2.9839]
[1718705270769,0.91092362,3430.6,3430.0,2.9839]
[1718705271186,0.91092362,3430.5,3430.0,2.9839]
[1718705271599,1.21079712,3430.7,3430.3,2.079]
[1718705271600,0.91092362,3430.7,3430.3,2.079]
[1718705271771,0.91092362,3430.8,3430.4,0.55]
[1718705273210,0.91092362,3430.7,3430.4,0.55]
[1718705273376,0.91092362,3430.8,3430.4,0.55]
[1718705273576,0.91092362,3430.8,3430.7,2.079]
[1718705273872,0.91092362,3431.0,3430.7,4.9598]
[1718705274084,0.91092362,3431.0,3430.7,4.4098]
[1718705274298,0.91092362,3431.0,3430.8,0.55]
[1718705274920,0.91092362,3431.2,3430.8,0.55]
[1718705275113,0.91092362,3431.2,3430.8,0.60828842]
[1718705275485,0.91092362,3431.4,3431.1,2.079]
[1718705275683,0.91092362,3431.6,3431.2,0.55]
[1718705276986,0.91092362,3431.6,3430.2,2.4739]